Cogmind - Beta 13 @@@ ROGUE MODE // 2024.04.10 @ 03:09:16 Player: Trekki Result: Destroyed by P-80 Master with Gamma Rifle Performance ------------- Evolutions (8) 4000 Regions Visited (14) 2800 Robots Destroyed (101) 505 Value Destroyed (4144) 4144 Prototype IDs (3) 60 Alien Tech Used (0) 0 Bonus (1318) 1318 TOTAL SCORE: 12827 Bonus ------- Follower Combat Kills 174 Entered DSFs 1000 Acquired ECA 300 Friendly Fire -156 Cogmind --------- Core Integrity 0/1450 Matter 57/300 Energy 93/100 System Corruption 13% Temperature Cool (0) Movement Core (200) Ox3 Location -2/Testing Parts ------- > --- POWER (2) -------- (None) > --- PROPULSION (8) --- (None) > --- UTILITY (9) ------ Medium Storage Unit > --- WEAPON (4) ------- (None) > --- INVENTORY (10) --- Light Particle Reactor Light Quantum Reactor Light Quantum Reactor Light Quantum Reactor Light Quantum Reactor Advanced Cryofiber Web Advanced Corruption Screen Advanced Corruption Screen Improved Arc Projector Linear Accelerator Peak State ------------ > --- POWER ------------ Light Nuclear Core Fusion Compressor > --- PROPULSION ------- Armored Medium Treads Armored Medium Treads Armored Medium Treads Armored Medium Treads Armored Medium Treads Armored Medium Treads > --- UTILITY ---------- Power Amplifier Improved Coolant Injector Huge Storage Unit Encrypted Comm Array Insulated Plating > --- WEAPON ----------- Railgun Railgun Railgun Railgun > --- INVENTORY -------- Armored Medium Treads Armored Medium Treads Carbon-fiber Leg Improved VSS Leg Myomer Leg Wheel Compact Wheel Medium Storage Unit Matter Compressor Disruptor Cannon Railgun Railgun Molecular Deconstructor [Rating: 99] Favorites ----------- Power Improved Ion Engine Engine Improved Ion Engine Power Core Nuclear Core Reactor Light Antimatter Reactor Propulsion Light Treads Treads Light Treads Leg Carbon-fiber Leg Wheel Wheel Hover Unit Improved Gyrokinetic Inverter Flight Unit Impulse Thruster Array Utility Large Storage Unit Device Weapon Cycler Storage Large Storage Unit Processor Terrain Scan Processor Hackware System Shield Protection Hardened Medium Armor Plating Weapon Spread Laser Energy Gun Spread Laser Energy Cannon Heavy Phase Cannon Ballistic Gun KE Penetrator Ballistic Cannon Heavy Flak Cannon Launcher Grenade Launcher Special Weapon Molecular Deconstructor Slashing Weapon Makeshift Axe Build | -11 -10 -9 -8 -7 -7 -6 -6 -6 -5 -4 -4 -3 -2 -2 ------- Run | Yrd Mat Mat Mat Fac DSF Fac Low Low Fac Fac DSF Res Res Tes Slots Evolved 16 | . . 2 2 2 . 2 . . 2 2 . 2 2 . Power 1 | . . . . 1 . . . . . . . . . . Propulsion 6 | . . 1 1 . . . . . . 2 . . 2 . Utility 7 | . . 1 . 1 . 2 . . 1 . . 2 . . Weapon 2 | . . . 1 . . . . . 1 . . . . . Parts Attached 256 | 7 4 9 9 5 10 9 19 23 98 7 27 15 8 6 Power 30 | 1 . 1 . 1 2 . . 2 12 2 4 3 1 1 Engine 12 | 1 . 1 . 1 1 . . . 6 1 . . . 1 Core 11 | . . . . . 1 . . 2 4 1 3 . . . Reactor 7 | . . . . . . . . . 2 . 1 3 1 . Propulsion 74 | 2 2 1 1 . 2 1 4 5 28 3 14 5 4 2 Treads 25 | . 2 1 1 . 2 1 3 1 6 . 8 . . . Leg 27 | 2 . . . . . . 1 3 12 1 6 1 1 . Wheel 16 | . . . . . . . . 1 10 2 . 1 . 2 Hover 1 | . . . . . . . . . . . . 1 . . Flight 5 | . . . . . . . . . . . . 2 3 . Utility 61 | 2 1 2 2 2 . 5 4 5 27 2 3 3 2 1 Device 34 | 1 . . . 1 . 5 2 1 21 . 1 2 . . Storage 14 | 1 1 1 . . . . . 2 3 2 1 1 1 1 Processor 2 | . . 1 . . . . . . . . . . 1 . Hackware 2 | . . . 1 1 . . . . . . . . . . Protection 9 | . . . 1 . . . 2 2 3 . 1 . . . Artifact . | . . . . . . . . . . . . . . . Weapon 91 | 2 1 5 6 2 6 3 11 11 31 . 6 4 1 2 Energy Gun 29 | 2 . 1 1 . 1 1 3 2 16 . . . . 2 Energy Cannon 8 | . . . . . . . 1 . 7 . . . . . Ballistic Gun 27 | . . 2 3 1 2 2 2 3 6 . 6 . . . Ballistic Cannon 3 | . . . . . . . . . 1 . . 1 1 . Launcher 12 | . . 2 1 . 3 . 3 3 . . . . . . Special Weapon 9 | . 1 . 1 1 . . 1 1 1 . . 3 . . Impact Weapon . | . . . . . . . . . . . . . . . Slashing Weapon 3 | . . . . . . . 1 2 . . . . . . Piercing Weapon . | . . . . . . . . . . . . . . . Special Melee Weapon . | . . . . . . . . . . . . . . . Unidentified Prototypes 3 | . . . . . . . 1 . 2 . . . . . Corrupted Parts 4 | . . . . . . 1 . 3 . . . . . . System Corruption 27 | . . . . . . 7 . 20 . . . . . . Parts Lost 110 | . . 1 . . 3 2 1 14 49 . 25 6 4 5 Power 17 | . . . . . . . . 3 7 . 5 1 . 1 Propulsion 38 | . . . . . 2 1 1 4 16 . 7 2 3 2 Utility 23 | . . . . . 1 . . 2 13 . 6 1 . . Weapon 32 | . . 1 . . . 1 . 5 13 . 7 2 1 2 Highest Loss Streak 14 | . . 1 . . 2 2 1 14 12 . 11 5 2 5 To Critical Strikes 2 | . . . . . . . . . . . 2 . . . Average Slot Usage (%) 75 | . 100 95 99 100 96 100 99 38 75 53 65 20 8 15 Engine 5 | . 14 11 9 15 7 6 6 . 3 2 . . . 2 Core 2 | . . . . . 6 6 6 1 2 2 5 . . . Treads 13 | . 9 28 35 30 28 26 25 6 1 . 23 . . . Leg 5 | . 18 . . . . . . 4 13 6 2 1 . . Wheel 1 | . . . . . . . . . 3 6 . 1 . 5 Device 12 | . 14 . . 7 . 20 20 7 20 21 11 1 . . Storage 6 | . 14 22 9 7 7 6 6 5 4 2 4 1 . 2 Hackware 2 | . . . 8 7 14 6 6 1 . . . . . . Protection 3 | . . . 8 7 7 6 6 1 2 . . . . . Energy Gun 7 | . 15 11 11 7 5 12 12 1 7 . . . . 4 Ballistic Gun 6 | . . 6 14 13 13 6 4 1 5 5 11 . . . Special Weapon 1 | . 12 3 . 1 . . . . . 5 1 2 1 . Naked Turns 193 | . . . . . . . . 19 1 . 11 4 122 36 Heaviest Build 119 | 14 29 36 45 49 59 63 68 68 80 35 119 41 36 23 Greatest Support 162 | 20 40 60 80 80 80 80 80 80 70 26 162 28 24 20 Greatest Overweight (x) 5 | . . . . . . . 1 1 5 3 1 2 3 1 Average Overweight (x) . | . . . . . . . . . . . . . . . Largest Inventory Capacity 25 | 8 15 15 15 15 15 15 15 15 25 25 25 10 10 10 Average Capacity 13 | 7 10 15 15 15 15 15 15 14 13 7 23 7 5 7 Most Carried 16 | 8 9 12 15 15 15 15 15 15 15 7 16 5 10 10 Average Carried 10 | 5 7 10 13 12 14 12 14 10 11 4 11 2 5 7 Final Capacity 15 | 8 15 15 15 15 15 15 15 15 5 10 5 5 5 10 Final Carried 15 | 7 9 12 14 15 15 14 15 11 4 5 5 5 4 10 Class Distribution -------------------- 43% | Scavenger-Tank 26% | Mutant 15% | Scavenger-Gunner 8% | Scavenger-Mutant 4% | Gunner Dominant Class ---------------- Mutant | -10/Materials Mutant | -9/Materials Scavenger-Tank | -8/Materials Scavenger-Tank | -7/Factory Scavenger-Tank | -7/DSF Scavenger-Tank | -6/Factory Scavenger-Tank | -6/Lower Caves Mutant | -6/Lower Caves Scavenger-Gunner | -5/Factory Scavenger-Gunner | -4/Factory Mutant | -4/DSF Mutant | -3/Research Mutant | -2/Research Mutant | -2/Testing Resources | -11 -10 -9 -8 -7 -7 -6 -6 -6 -5 -4 -4 -3 -2 -2 ----------- Run | Yrd Mat Mat Mat Fac DSF Fac Low Low Fac Fac DSF Res Res Tes Matter Collected 4290 | 270 . 146 115 . 126 66 500 522 1760 114 611 7 23 30 Remotely 113 | . . . . . . . . . 113 . . . . . Salvage Created 5350 | 239 . 221 140 . 452 66 347 529 2191 145 990 . . 30 Parts 213 | 21 . 10 5 . 10 4 15 11 85 5 43 . . 4 Haulers Intercepted 1 | . . . . . . . . . 1 . . . . . Recyclers Shooed 10 | . . 2 . . . . . . 8 . . . . . Parts Field Recycled . | . . . . . . . . . . . . . . . Retrieved Matter . | . . . . . . . . . . . . . . . Parts Self-Destructed 21 | . . . . . . . 9 12 . . . . . . Prevented 13 | . . . . . . . 6 7 . . . . . . Kills | -11 -10 -9 -8 -7 -7 -6 -6 -6 -5 -4 -4 -3 -2 -2 ------- Run | Yrd Mat Mat Mat Fac DSF Fac Low Low Fac Fac DSF Res Res Tes Combat Hostiles Destroyed 77 | . . 1 5 . 6 1 9 11 33 . 11 . . . Melee 1 | . . . . . . . . 1 . . . . . . Guns 47 | . . 1 3 . 2 1 4 2 24 . 10 . . . Cannons 8 | . . . . . . . 1 2 5 . . . . . AOE 14 | . . . 2 . 4 . 3 5 . . . . . . Classes Destroyed 16 | 2 . 3 1 . 1 . 1 . 6 . 2 . . . Worker 7 | . . 1 . . . . . . 4 1 . . . 1 Builder 1 | . . . . . . . . . 1 . . . . . Tunneler 8 | 7 . . . . . . . . 1 . . . . . Hauler 1 | . . . . . . . . . 1 . . . . . Recycler 7 | 1 . 2 . . . . . . 3 1 . . . . Operator 1 | . . 1 . . . . . . . . . . . . Swarmer 16 | . . . . . 4 . 4 1 7 . . . . . Grunt 24 | . . . 3 . 2 . 3 2 11 . 3 . . . Duelist 7 | . . . . . . . 1 6 . . . . . . Sentry 12 | . . 1 2 . . 1 1 2 5 . . . . . Demolisher 1 | . . . . . . . . . 1 . . . . . Specialist 4 | . . . . . . . . . . . 4 . . . Hunter 4 | . . . . . . . . . 2 . 2 . . . Programmer 5 | . . . . . . . . . 5 . . . . . Heavy 2 | . . . . . . . . . . . 2 . . . Assembled 2 | . . . . . . . . . 2 . . . . . Thug 1 | . . . . . . . . . 1 . . . . . Best Kill Streak 9 | 3 . 3 3 . 3 1 4 9 5 1 3 . . 1 Combat Bots Only 9 | . . 1 3 . 3 1 4 9 5 . 3 . . . Max Kills in Single Turn 3 | 1 . 2 2 . 3 1 2 2 2 1 1 . . 1 Gunslinging 1 | . . . . . . . 1 . 1 . . . . . Exploded 3 | . . . 2 . 3 . 2 2 . . . . . . Melee 1 | . . . . . . . . 1 . . . . . . Uniques/NPCs Destroyed . | . . . . . . . . . . . . . . . Combat | -11 -10 -9 -8 -7 -7 -6 -6 -6 -5 -4 -4 -3 -2 -2 -------- Run | Yrd Mat Mat Mat Fac DSF Fac Low Low Fac Fac DSF Res Res Tes Hostile Shots Fired 1346 | . . 4 24 . 37 45 72 90 349 . 479 89 127 30 Missed 407 | . . . 10 . 12 10 26 15 99 . 137 42 50 6 Damage Taken 18669 | . . 157 311 . 495 282 575 2143 5419 . 5978 902 1584 823 Core 3923 | . . 10 24 . 34 27 50 486 728 . 927 180 1019 438 Absorbed by Shields . | . . . . . . . . . . . . . . . Core Remaining (%) 72 | 100 100 97 95 . 95 . . 33 27 . 19 86 . . Volleys Fired 293 | 14 3 11 12 19 14 4 14 19 128 16 29 . . 10 Largest 4 | 2 1 2 3 1 3 3 3 3 4 1 4 . . 2 Hottest 300 | 90 100 100 105 100 125 160 170 174 300 28 140 . . 130 Shots Fired 630 | 28 3 17 21 19 38 12 33 45 291 16 93 . . 14 Gun 518 | 28 . 12 14 . 29 12 24 30 249 16 90 . . 14 Cannon 52 | . . . . . . . 3 9 40 . . . . . Launcher 30 | . . 3 6 . 9 . 6 6 . . . . . . Special 30 | . 3 2 1 19 . . . . 2 . 3 . . . Kinetic 306 | . . 6 9 . 22 4 5 23 131 16 90 . . . Thermal 259 | 28 3 8 6 19 7 8 19 7 154 . . . . . Explosive 17 | . . 3 6 . 2 . 3 3 . . . . . . Electromagnetic 43 | . . . . . 7 . 6 12 4 . . . . 14 Robot Hit Streak 16 | 11 . 7 7 . 8 6 9 11 16 6 8 . . 10 Robot Miss Streak 6 | 2 . 2 2 . 6 5 2 3 5 4 2 . . 1 Penetration Max 1 | . . . . . . . . . 1 1 1 . . . Secondary Targets 10 | . . . . . . . 1 . 5 . 4 . . . Max Gunslinging Chain 1 | . . . . . . . 1 . 1 . 1 . . . Shots Hit Robots 424 | 18 . 10 14 . 14 11 27 44 202 10 63 . . 11 Core Hits 277 | 9 . 13 18 . 13 7 23 46 100 5 30 . 6 7 Critical Kills 1 | . . . . . . . . . . . 1 . . . Critical Parts Destroyed 3 | . . . . . . . . . 2 . 1 . . . Critical Strikes 14 | 2 . . 1 . . . . . 9 . 2 . . . Burn 8 | 2 . . . . . . . . 6 . . . . . Destroy 5 | . . . 1 . . . . . 2 . 2 . . . Sever 1 | . . . . . . . . . 1 . . . . . Melee Attacks 22 | . . . . . . . 1 3 18 . . . . . Impact . | . . . . . . . . . . . . . . . Slashing 22 | . . . . . . . 1 3 18 . . . . . Piercing . | . . . . . . . . . . . . . . . Sneak Attacks 4 | . . . . . . . . 3 1 . . . . . Combat Hostiles . | . . . . . . . . . . . . . . . Follow-up Attacks 1 | . . . . . . . . . 1 . . . . . Damage Inflicted 12325 | 213 . 375 622 . 431 175 947 1896 5495 253 1773 . 49 96 Guns 8135 | 213 . 95 112 . 175 175 349 584 4380 253 1773 . . 26 Cannons 1245 | . . . . . . . 62 203 980 . . . . . Explosions 2481 | . . 280 510 . 256 . 536 899 . . . . . . Melee 336 | . . . . . . . . 210 126 . . . . . Ramming 128 | . . . . . . . . . 9 . . . 49 70 Kinetic 5605 | . . 34 35 . 69 45 73 435 2888 253 1773 . . . Thermal 3607 | 213 . 253 77 . 131 130 276 149 2378 . . . . . Explosive 1417 | . . 70 510 . 122 . 200 515 . . . . . . Electromagnetic 1232 | . . 18 . . 109 . 398 587 94 . . . . 26 Impact . | . . . . . . . . . . . . . . . Slashing 336 | . . . . . . . . 210 126 . . . . . Piercing . | . . . . . . . . . . . . . . . Highest Corruption 28 | . . 1 . . . 7 7 28 12 . 3 . 6 12 Average Corruption 7 | . . 1 . . . 7 7 10 8 . 2 . 6 6 Corruption Purged . | . . . . . . . . . . . . . . . Corruption Blocked . | . . . . . . . . . . . . . . . Effects 122 | . . . . . . 1 26 14 67 . 4 . 4 6 Message Errors 31 | . . . . . . 1 6 4 15 . 3 . 1 1 Matter Fused 28 | . . . . . . . 6 3 17 . . . . 2 Heat Flow Errors 11 | . . . . . . . 4 1 6 . . . . . Energy Discharges 11 | . . . . . . . 6 . 4 . . . . 1 Parts Rejected 3 | . . . . . . . . . 2 . . . 1 . Parts Fused 1 | . . . . . . . . . 1 . . . . . Data Loss (minor) 10 | . . . . . . . 1 . 7 . . . 1 1 Data Loss (major) 4 | . . . . . . . 1 1 2 . . . . . Misfires 9 | . . . . . . . 1 1 5 . 1 . . 1 Alerts 2 | . . . . . . . . . 1 . . . 1 . Misdirections 2 | . . . . . . . . . 2 . . . . . Weapon Failures 10 | . . . . . . . 1 4 5 . . . . . Overload Shots . | . . . . . . . . . . . . . . . Overflow Damage 84 | . . 6 22 . . . . 29 27 . . . . . Projectiles 27 | . . . . . . . . . 27 . . . . . Explosions 57 | . . 6 22 . . . . 29 . . . . . . Melee . | . . . . . . . . . . . . . . . Knockbacks 16 | . . . . . . . . . 14 . . . 2 . Impact 2 | . . . . . . . . . . . . . 2 . Kinetic 12 | . . . . . . . . . 12 . . . . . Secondary 2 | . . . . . . . . . 2 . . . . . Self-Inflicted Damage 416 | . . 103 87 . . . 50 123 . . . . 21 32 Shots 15 | . . 3 5 . . . 2 5 . . . . . . Rammed 32 | . . . . . . . . . . . . . 12 20 Targets Rammed 36 | . . . . . . . . . 4 . . . 12 20 Kicked 4 | . . . . . . . . . 4 . . . . . Crushed . | . . . . . . . . . . . . . . . Highest Temperature 1881 | 180 20 18 108 . 122 236 240 277 342 . 1881 . . . Average Temperature 131 | 56 10 8 51 . 29 106 86 105 84 . 375 . . . Received Heat Transfer 2902 | . . 18 171 . 63 48 132 211 840 . 1248 27 144 . Effects 42 | . . . . . . . . . 1 . 41 . . . Shutdowns 6 | . . . . . . . . . . . 6 . . . Energy Bleed 5 | . . . . . . . . . 1 . 4 . . . Interference 4 | . . . . . . . . . . . 4 . . . Matter Decay 4 | . . . . . . . . . . . 4 . . . Short Circuit 4 | . . . . . . . . . . . 4 . . . Damage (major) 16 | . . . . . . . . . . . 16 . . . Damage (core) 3 | . . . . . . . . . . . 3 . . . Siege Activations . | . . . . . . . . . . . . . . . Robots Corrupted 2 | . . . . . . . 1 1 . . . . . . Combat Hostiles 2 | . . . . . . . 1 1 . . . . . . Parts Fried 4 | . . . . . . . 1 3 . . . . . . Impact Corruptions . | . . . . . . . . . . . . . . . Robots Melted 3 | . . . . . . . . . 3 . . . . . Combat Hostiles 3 | . . . . . . . . . 3 . . . . . Parts Melted 12 | 2 . 1 . . . . . . 8 . 1 . . . Heat Transferred 6929 | 742 . 214 95 . 235 198 419 201 4825 . . . . . Parts Sabotaged . | . . . . . . . . . . . . . . . Parts Stolen . | . . . . . . . . . . . . . . . Parts Stripped . | . . . . . . . . . . . . . . . Power Chain Reactions 1 | . . . . . 1 . . . . . . . . . Alert | -11 -10 -9 -8 -7 -7 -6 -6 -6 -5 -4 -4 -3 -2 -2 ------- Run | Yrd Mat Mat Mat Fac DSF Fac Low Low Fac Fac DSF Res Res Tes Peak Influence 285 | 40 29 232 281 36 218 174 . . 233 60 172 75 285 174 Initial 154 | . 26 11 97 36 25 114 . . 66 46 42 45 42 154 Average 103 | 13 28 112 191 36 137 136 . . 100 55 104 50 174 166 Maximum Alert Level 1 | . . 1 1 . 1 . . . 1 . . . 1 . Low Security (%) 89 | 100 100 76 46 100 79 100 . . 96 100 100 100 64 100 Level 1 10 | . . 23 53 . 20 . . . 3 . . . 35 . Level 2 . | . . . . . . . . . . . . . . . Level 3 . | . . . . . . . . . . . . . . . Level 4 . | . . . . . . . . . . . . . . . Level 5 . | . . . . . . . . . . . . . . . High Security . | . . . . . . . . . . . . . . . Max Security . | . . . . . . . . . . . . . . . Sterilizations 2 | . . . . . 1 . . . . . 1 . . . Squads Dispatched 18 | . . 1 . . 1 . . 1 6 1 4 2 2 . Investigation 3 | . . . . . . . . . . . . 1 2 . Extermination 3 | . . . . . . . . . 2 1 . . . . Reinforcement 7 | . . 1 . . 1 . . . . . 4 1 . . Assault 1 | . . . . . . . . 1 . . . . . . Garrison 4 | . . . . . . . . . 4 . . . . . Intercept . | . . . . . . . . . . . . . . . Searches Triggered . | . . . . . . . . . . . . . . . Construction Impeded . | . . . . . . . . . . . . . . . Haulers Reinforced . | . . . . . . . . . . . . . . . Active Scanning Responses . | . . . . . . . . . . . . . . . Cargo Convoy Interrupts . | . . . . . . . . . . . . . . . Stealth | -11 -10 -9 -8 -7 -7 -6 -6 -6 -5 -4 -4 -3 -2 -2 --------- Run | Yrd Mat Mat Mat Fac DSF Fac Low Low Fac Fac DSF Res Res Tes Distress Signals 1 | . . . . . . . . . . . . . 1 . Communications Jammed . | . . . . . . . . . . . . . . . Distress Signals . | . . . . . . . . . . . . . . . Times Spotted 140 | . . 5 5 . 9 4 9 13 47 . 14 8 21 5 Peak Tracking Total 11 | . . 3 3 . 4 2 4 8 6 1 6 6 11 2 Tactical Retreats 9 | . . . . . 1 . . . 2 . . 1 5 . Traps | -11 -10 -9 -8 -7 -7 -6 -6 -6 -5 -4 -4 -3 -2 -2 ------- Run | Yrd Mat Mat Mat Fac DSF Fac Low Low Fac Fac DSF Res Res Tes Traps Triggered 10 | . . . . 1 1 . . . 3 1 1 1 2 . Indirectly . | . . . . . . . . . . . . . . . Trap Hack Attempts . | . . . . . . . . . . . . . . . Triggered . | . . . . . . . . . . . . . . . Disarmed . | . . . . . . . . . . . . . . . Reprogrammed . | . . . . . . . . . . . . . . . Reused . | . . . . . . . . . . . . . . . Traps Extracted . | . . . . . . . . . . . . . . . Installed . | . . . . . . . . . . . . . . . Triggered . | . . . . . . . . . . . . . . . Machines | -11 -10 -9 -8 -7 -7 -6 -6 -6 -5 -4 -4 -3 -2 -2 ---------- Run | Yrd Mat Mat Mat Fac DSF Fac Low Low Fac Fac DSF Res Res Tes Machines Disabled 12 | . . 7 . . 1 . 1 1 1 . 1 . . . Max in Single Turn 4 | . . 4 . . 1 . 1 1 1 . 1 . . . Machines Repaired . | . . . . . . . . . . . . . . . Machines Dismantled . | . . . . . . . . . . . . . . . Machines Sabotaged . | . . . . . . . . . . . . . . . Overloaded Fab Kills . | . . . . . . . . . . . . . . . Hacking | -11 -10 -9 -8 -7 -7 -6 -6 -6 -5 -4 -4 -3 -2 -2 --------- Run | Yrd Mat Mat Mat Fac DSF Fac Low Low Fac Fac DSF Res Res Tes Machines Accessed 14 | . . 1 2 1 . . . . 4 1 . 2 3 . Terminals 8 | . . 1 2 1 . . . . 1 1 . 1 1 . Fabricators 1 | . . . . . . . . . . . . 1 . . Repair Stations 1 | . . . . . . . . . 1 . . . . . Recycling Units 2 | . . . . . . . . . . . . . 2 . Scanalyzers 2 | . . . . . . . . . 2 . . . . . Garrison Access . | . . . . . . . . . . . . . . . Total Hacks 34 | . . 4 5 4 . . . . 9 1 . 4 7 . Successful 18 | . . 2 1 1 . . . . 9 1 . . 4 . Failed 16 | . . 2 4 3 . . . . . . . 4 3 . Catastrophic 4 | . . . 1 . . . . . . . . 2 1 . Database Lockouts . | . . . . . . . . . . . . . . . Manual 1 | . . . . . . . 1 . . . . . . . Terminals 19 | . . 4 5 4 . . . . 1 1 . 2 2 . Fabricators 2 | . . . . . . . . . . . . 2 . . Repair Stations 2 | . . . . . . . . . 2 . . . . . Recycling Units 5 | . . . . . . . . . . . . . 5 . Scanalyzers 6 | . . . . . . . . . 6 . . . . . Garrison Access . | . . . . . . . . . . . . . . . Terminal Hacks 8 | . . 2 1 1 . . . . 1 1 . . 2 . Record 2 | . . . . . . . . . . . . . 2 . Open DSF 3 | . . . . 1 . . . . 1 1 . . . . Branch Access Points 1 | . . . 1 . . . . . . . . . . . Dispatch Records 1 | . . 1 . . . . . . . . . . . . Zone Layout 1 | . . 1 . . . . . . . . . . . . Fabricator Hacks . | . . . . . . . . . . . . . . . Repair Station Hacks 2 | . . . . . . . . . 2 . . . . . Scan Component 1 | . . . . . . . . . 1 . . . . . Repair 1 | . . . . . . . . . 1 . . . . . Recycling Unit Hacks 2 | . . . . . . . . . . . . . 2 . Retrieve Matter 2 | . . . . . . . . . . . . . 2 . Scanalyzer 6 | . . . . . . . . . 6 . . . . . Insert Component 3 | . . . . . . . . . 3 . . . . . Analyze 3 | . . . . . . . . . 3 . . . . . Garrison Access Hacks . | . . . . . . . . . . . . . . . Unauthorized Hacks . | . . . . . . . . . . . . . . . Terminals . | . . . . . . . . . . . . . . . Fabricators . | . . . . . . . . . . . . . . . Repair Stations . | . . . . . . . . . . . . . . . Recycling Units . | . . . . . . . . . . . . . . . Scanalyzers . | . . . . . . . . . . . . . . . Garrison Access . | . . . . . . . . . . . . . . . Data Cores Recovered . | . . . . . . . . . . . . . . . Used . | . . . . . . . . . . . . . . . Hacking Detections 9 | . . . 1 1 . . . . 2 . . 2 3 . Full Trace Events 3 | . . . . . . . . . . . . 1 2 . Feedback Events . | . . . . . . . . . . . . . . . Feedback Blocked . | . . . . . . . . . . . . . . . Robot Schematics Acquired . | . . . . . . . . . . . . . . . Robots Built . | . . . . . . . . . . . . . . . Authchips . | . . . . . . . . . . . . . . . Time . | . . . . . . . . . . . . . . . Total Robot Build Rating . | . . . . . . . . . . . . . . . Part Schematics Acquired 3 | . . . . . . . . . 3 . . . . . Parts Built . | . . . . . . . . . . . . . . . Authchips . | . . . . . . . . . . . . . . . Time . | . . . . . . . . . . . . . . . Total Part Build Rating . | . . . . . . . . . . . . . . . Parts Repaired . | . . . . . . . . . . . . . . . Time 38 | . . . . . . . . . 38 . . . . . Parts Recycled . | . . . . . . . . . . . . . . . Recycled Matter . | . . . . . . . . . . . . . . . Retrieved Matter . | . . . . . . . . . . . . . . . Retrieved Components . | . . . . . . . . . . . . . . . Parts Scanalyzed 3 | . . . . . . . . . 3 . . . . . Part Schematics Acquired 3 | . . . . . . . . . 3 . . . . . Parts Damaged 1 | . . . . . . . . . 1 . . . . . Bothacking | -11 -10 -9 -8 -7 -7 -6 -6 -6 -5 -4 -4 -3 -2 -2 ------------ Run | Yrd Mat Mat Mat Fac DSF Fac Low Low Fac Fac DSF Res Res Tes Used RIF Installer . | . . . . . . . . . . . . . . . Robots Hacked . | . . . . . . . . . . . . . . . Non-combat . | . . . . . . . . . . . . . . . Combat . | . . . . . . . . . . . . . . . Robot Hacks Applied . | . . . . . . . . . . . . . . . Relay Couplers Released . | . . . . . . . . . . . . . . . Fabnet Peak Effective % . | . . . . . . . . . . . . . . . Robots Rewired . | . . . . . . . . . . . . . . . Allies Hacked . | . . . . . . . . . . . . . . . Hacks Repelled . | . . . . . . . . . . . . . . . Allies | -11 -10 -9 -8 -7 -7 -6 -6 -6 -5 -4 -4 -3 -2 -2 -------- Run | Yrd Mat Mat Mat Fac DSF Fac Low Low Fac Fac DSF Res Res Tes Total Allies 3 | . . . . 3 . . . . . . . . . . Largest Group 3 | . . . . 3 3 . . . . . . . . . Highest-Rated Group 93 | . . . . 93 93 . . . . . . . . . Highest-Rated Ally 31 | . . . . 31 31 . . . . . . . . . Warlord Squad Rendezvous 2 | . . . . . . . . . 1 1 . . . . Infantry 1 | . . . . . . . . . 1 . . . . . Pyro 1 | . . . . . . . . . . 1 . . . . Total Orders . | . . . . . . . . . . . . . . . Ally Attacks 29 | . . . . . 29 . . . . . . . . . Total Damage 483 | . . . . . 483 . . . . . . . . . Kills 4 | . . . . . 4 . . . . . . . . . Allies Corrupted . | . . . . . . . . . . . . . . . Allies Melted . | . . . . . . . . . . . . . . . Intel | -11 -10 -9 -8 -7 -7 -6 -6 -6 -5 -4 -4 -3 -2 -2 ------- Run | Yrd Mat Mat Mat Fac DSF Fac Low Low Fac Fac DSF Res Res Tes Robot Analysis Total . | . . . . . . . . . . . . . . . Derelict Logs Recovered 2 | . . . . . . . 2 . . . . . . . Drone Launches . | . . . . . . . . . . . . . . . Drone Recoveries . | . . . . . . . . . . . . . . . Exploration | -11 -10 -9 -8 -7 -7 -6 -6 -6 -5 -4 -4 -3 -2 -2 ------------- Run | Yrd Mat Mat Mat Fac DSF Fac Low Low Fac Fac DSF Res Res Tes Turns Passed 6562 | 247 170 349 411 307 330 176 1000 286 2005 263 328 228 284 178 Spaces Moved 3781 | 147 111 186 203 139 163 82 539 98 942 181 120 289 469 112 Core 357 | 5 . . . . . . . . 2 . 23 43 237 47 Treads 1476 | . 35 186 203 139 163 82 539 48 4 . 77 . . . Legs 1055 | 142 76 . . . . . . 48 706 32 8 26 17 . Wheels 506 | . . . . . . . . 2 230 149 12 48 . 65 Hover 26 | . . . . . . . . . . . . 26 . . Flight 361 | . . . . . . . . . . . . 146 215 . Fastest Speed 37 | 50 120 160 160 160 160 162 162 100 50 95 50 39 37 50 Average Speed 127 | 117 132 160 160 160 161 162 166 163 140 105 141 69 51 69 Slowest Speed 260 | 120 160 160 160 160 162 162 243 250 260 125 187 180 200 95 Overloaded Moves . | . . . . . . . . . . . . . . . Propulsion Burnouts . | . . . . . . . . . . . . . . . Robots Hopped 2 | . . . . . . . . . . . . 1 1 . Cave-ins Triggered . | . . . . . . . . . . . . . . . Exploration Rate (%) 26 | 6 26 23 27 4 87 4 67 11 10 4 89 13 16 7 Regions Visited 14 Branch Regions 3 Pre-discovered Areas 1 | . . . . . . . 1 . . . . . . . Known Exits Taken 2 | . . . . 1 . . . . . 1 . . . . Unknown Exits Taken 10 | 1 1 1 1 . . 1 1 1 1 . . 1 1 . Scrap Searched 6 | . . . . . . . 5 1 . . . . . . Spaces Dug 18 | . 3 2 1 . . . . . 12 . . . . . Terrain Destroyed 108 | . 3 32 18 . 5 . 9 14 24 1 2 . . . Melee 11 | . . . . . . . . . 11 . . . . . Projectile 23 | . 3 2 1 . . . . 1 13 1 2 . . . AOE 74 | . . 30 17 . 5 . 9 13 . . . . . . Terrain Rammed . | . . . . . . . . . . . . . . . Walls Destroyed . | . . . . . . . . . . . . . . . Machines Disabled . | . . . . . . . . . . . . . . . Actions | -11 -10 -9 -8 -7 -7 -6 -6 -6 -5 -4 -4 -3 -2 -2 --------- Run | Yrd Mat Mat Mat Fac DSF Fac Low Low Fac Fac DSF Res Res Tes Total 4928 | 193 124 214 269 166 203 116 620 188 1373 236 206 316 512 192 Wait 249 | 12 . 1 33 . 2 18 20 25 75 19 1 . 7 36 Move 3763 | 146 110 185 202 138 162 81 538 97 941 180 119 286 466 112 Hop 2 | . . . . . . . . . . . . 1 1 . Pick Up 212 | 14 4 6 9 3 7 4 10 18 83 4 26 9 7 8 Fast Attach 28 | . . 2 . . 1 . 4 1 10 2 1 2 1 4 Attach 147 | 7 . 2 2 3 1 5 2 19 60 5 19 13 7 2 Detach 15 | . . . . . . . 2 1 1 2 1 5 3 . Swap 81 | . 4 5 7 2 8 4 13 3 28 . 7 . . . Drop 74 | . 3 2 4 1 8 . 16 2 27 . 3 . 8 . Fire 293 | 14 3 11 12 19 14 4 14 19 128 16 29 . . 10 Melee 20 | . . . . . . . 1 3 16 . . . . . Ram 32 | . . . . . . . . . . . . . 12 20 Kick 4 | . . . . . . . . . 4 . . . . . Crush . | . . . . . . . . . . . . . . . Escape Stasis 8 | . . . . . . . . . . 8 . . . . Rewire . | . . . . . . . . . . . . . . . Trap . | . . . . . . . . . . . . . . . Miscellaneous . | . . . . . . . . . . . . . . . Route ------- -11/Scrapyard -10/Materials -9/Materials -8/Materials (discovered 2 exits: *Fac / Sto) -7/Factory -7/DSF -6/Factory -6/Lower Caves -6/Lower Caves -5/Factory (discovered 2 exits: *Fac / Upp) -4/Factory -4/DSF -3/Research -2/Research -2/Testing History --------- Turn | Location | Event 14 | -11/Scrapyard | Discovered new exit (range 15) 248 | -11/Scrapyard | Entered Materials 306 | -10/Materials | Build established: Mutant 402 | -10/Materials | Discovered new exit (range 10) 418 | -10/Materials | Entered another Materials area 418 | -9/Materials | Evolved 2 slots: Propulsion x1, Utility x1 684 | -9/Materials | Discovered new exit (range 5) 767 | -9/Materials | Entered another Materials area 767 | -8/Materials | Evolved 2 slots: Propulsion x1, Weapon x1 800 | -8/Materials | Identified exit to Storage 1092 | -8/Materials | Build established: Scavenger-Tank 1110 | -8/Materials | Discovered new exit (range 16) 1178 | -8/Materials | Entered Factory 1178 | -7/Factory | Evolved 2 slots: Power x1, Utility x1 1376 | -7/Factory | Allied Derelicts emerged from ambush trap array 1485 | -7/Factory | Identified exit to DSF 1485 | -7/Factory | Entered DSF 1485 | -7/DSF | Accompanied by 3 allies 1518 | -7/DSF | Discovered new exit (range 16) 1524 | -7/DSF | Additional patrols routed to DSF 1754 | -7/DSF | Sterilization system engaged 1774 | -7/DSF | Ambient heat levels rising (+10) 1789 | -7/DSF | Ambient heat levels rising (+10) 1804 | -7/DSF | Ambient heat levels rising (+10) 1815 | -7/DSF | Entered Factory 1815 | -6/Factory | Evolved 2 slots: Utility x2 1932 | -6/Factory | Discovered new exit (range 12) 1991 | -6/Factory | Entered Lower Caves 1997 | -6/Lower Caves | Met a Warlord Commander 1998 | -6/Lower Caves | Learned location of Warlord (-5) 1999 | -6/Lower Caves | Warlord Commander delivered Encrypted Comm Array 2003 | -6/Lower Caves | Found Encrypted Comm Array 2381 | -6/Lower Caves | Attracted the attention of an 0b10 checkpoint 2534 | -6/Lower Caves | Acquired the password to a Derelict Tinkerer's latest research 2575 | -6/Lower Caves | Found Prototype Special Weapon 2582 | -6/Lower Caves | Identified Molecular Deconstructor 2820 | -6/Lower Caves | Learned Factory stockpile data 2961 | -6/Lower Caves | Discovered new exit (range 10) 2991 | -6/Lower Caves | Entered another Lower Caves area 3010 | -6/Lower Caves | Attracted the attention of an 0b10 outpost 3064 | -6/Lower Caves | Core integrity fell below 50% 3081 | -6/Lower Caves | Destroyed 9 combat bots 3085 | -6/Lower Caves | Released all parts (5) 3109 | -6/Lower Caves | Lost 14 parts (3p4n2u5w) 3201 | -6/Lower Caves | Encountered a Warlord checkpoint 3217 | -6/Lower Caves | System corruption reached 10% 3262 | -6/Lower Caves | Discovered new exit (range 12) 3277 | -6/Lower Caves | Entered Factory 3277 | -5/Factory | Evolved 2 slots: Utility x1, Weapon x1 3278 | -5/Factory | Identified exit to Upper Caves 3350 | -5/Factory | Identified exit to DSF 3513 | -5/Factory | Build established: Scavenger-Mutant 3590 | -5/Factory | Lost 4 parts (2n2w) 3876 | -5/Factory | Build established: Scavenger-Tank 4164 | -5/Factory | System corruption reached 10% 4188 | -5/Factory | Garrison activated, responded to threat 4247 | -5/Factory | Lost 3 parts (2n1u) 4372 | -5/Factory | Released all parts (12) 4399 | -5/Factory | Lost 12 parts (2p5n2u3w) 4656 | -5/Factory | Joined by Warlord Infantry squad 4784 | -5/Factory | Assembled infested ambush trap array 4786 | -5/Factory | Build established: Scavenger-Gunner 4794 | -5/Factory | Garrison activated, responded to threat 4830 | -5/Factory | Lost 3 allies 4865 | -5/Factory | Lost 12 parts (3p2n4u3w) 4867 | -5/Factory | Core integrity fell below 50% 5087 | -5/Factory | Lost 3 parts (1n1u1w) 5143 | -5/Factory | Discovered new exit (range 9) 5200 | -5/Factory | Lost 6 parts (1p2n2u1w) 5282 | -5/Factory | Entered another Factory area 5282 | -4/Factory | Evolved 2 slots: Propulsion x2 5376 | -4/Factory | Identified exit to DSF 5461 | -4/Factory | Joined by Warlord Pyro squad 5545 | -4/Factory | Entered DSF 5595 | -4/DSF | Additional patrols routed to DSF 5648 | -4/DSF | Lost 4 parts (2p1u1w) 5727 | -4/DSF | Sterilization system engaged 5747 | -4/DSF | Ambient heat levels rising (+10) 5762 | -4/DSF | Ambient heat levels rising (+10) 5777 | -4/DSF | Ambient heat levels rising (+10) 5791 | -4/DSF | Lost 11 parts (2p2n3u4w) 5792 | -4/DSF | Ambient heat levels rising (+10) 5807 | -4/DSF | Ambient heat levels rising (+10) 5822 | -4/DSF | Ambient heat levels rising (+10) 5832 | -4/DSF | Core integrity fell below 50% 5837 | -4/DSF | Ambient heat levels rising (+10) 5852 | -4/DSF | Ambient heat levels rising (+10) 5861 | -4/DSF | Core integrity fell below 20% 5862 | -4/DSF | Released all parts (7) 5866 | -4/DSF | Discovered new exit (range 15) 5867 | -4/DSF | Ambient heat levels rising (+10) 5873 | -4/DSF | Entered Research 5873 | -3/Research | Evolved 2 slots: Utility x2 5891 | -3/Research | Lost 10 parts (1p5n2u2w) 5923 | -3/Research | Spotted B-86 Titan 6021 | -3/Research | Lost 5 parts (1p1n1u2w) 6096 | -3/Research | Discovered new exit (range 15) 6101 | -3/Research | Entered another Research area 6101 | -2/Research | Evolved 2 slots: Propulsion x2 6283 | -2/Research | Build established: Mutant 6348 | -2/Research | Spotted B-90 Cyclops 6349 | -2/Research | Core integrity fell below 50% 6381 | -2/Research | Discovered new exit (range 8) 6385 | -2/Research | Entered Testing 6545 | -2/Testing | System corruption reached 10% 6549 | -2/Testing | Core integrity fell below 20% 6563 | -2/Testing | Destroyed by P-80 Master with Gamma Rifle Last Messages --------------- 06520_ Wheel destroyed. 06520_ P-80 Master shuts down. 06539_ System corrupted: Component data lost. 06541_ P-80 Master reactivates. 06541_ Imp. Arc Projector destroyed. 06543_ Slammed into P-80 Master. 06550_ Wheel destroyed. 06553_ Slammed into P-80 Master. 06553_ P-80 Master resets P-80 Master, system corruption cleaned. 06555_ Scanalyzer disabled. 06555_ Imp. Arc Projector destroyed. 06556_ Slammed into P-80 Master. 06557_ Lgt. Ion Engine destroyed. 06559_ Slammed into P-80 Master. 06559_ Destabilizing: Core damaged (-72). 06561_ Slammed into P-80 Master. 06561_ Destabilizing: Core damaged (-72). 06563_ System corrupted: Matter fused (-6). 06563_ Slammed into P-80 Master. [Achievement: 10k Club] Map ----- +----------------------------------------------------+ | | | | | | | | | | | | | | | | | | | ?????????????????????????????????????????????????? | | ?????????????????????????????????????????????????? | | ?????????????????????????????????????????????????? | | ?????????????????????????????????????????????????? | | ?????????????????????????????????????????????????? | | ?????????????????????????????????????????????????? | | ?????????????????????????????????????????????????? | | ?????????????????##########????##########????????? | | ?????????????????# [! #????# #????????? | | ?????????????????# !! ""#????# !!! #????????? | | ?????????????????# !! ""#????# !!! #????????? | | ?????????????????# S"#????# #????????? | | ?????????????????# """#????# #????????? | | ?????????????????# """#????# !"" "" #????????? | | ?????????????????# ""#????# "F "" #????????? | | ?????????????????# p #????# """"" #????????? | | ?????????????????# @#????# #????????? | | ?????????????????#####p#############+####""" """?? | | ??????????????????# | | ??????????????????# | | ??????????????????# """""" """"? | | ??????????????????# """""" ????? | | ??????????????????###########+######! """"""?????? | | ??????????????????????????? ???# ?????? | | ????????????????????????? #??# ?????? | | ??????????????????????? #??# * ????? | | ??????????????????????# +??? ???? | | ??????????????????????# ! #??? ????? | | ??????????????????????# = #??? ######???? | | ??????????????????????# #??? #????????? | | ??????????????????????# #??? #????????? | | ??????????????????????###########??? #????????? | | ???????????????????????????????????? ?????????? | | ????????????????????????????????????? ???????????? | | ?????????????????????????????????????????????????? | | ?????????????????????????????????????????????????? | | ?????????????????????????????????????????????????? | | ?????????????????????????????????????????????????? | | ?????????????????????????????????????????????????? | | ?????????????????????????????????????????????????? | | ?????????????????????????????????????????????????? | +----------------------------------------------------+ Best States ------------- Heat Dissipation 78 Coolant Potential 80 Energy Generation 39 Energy Capacity 530 Matter Stores 344 Matter Capacity 450 Sight Range 16 Terrain Scan Density 85 Power Amplification 40 Additional Mass Support 9 Armor Coverage 450 Resistance: EM 15 Weapon Cycling 15 Evasion (%) 62 Recoil Reduction 6 Offensive Hacking 10 Defensive Hacking 10 Item Schematics ----------------- Imp. Heat Sink | -5/Factory | Scanalyzed Weapon Cycler | -5/Factory | Scanalyzed Wave Gun | -5/Factory | Scanalyzed Robot Schematics ------------------ None Fabricated ------------ Nothing Alien Tech Used ----------------- None Achievements -------------- 10k Club Backstab Dangerous Findings Deconstruction Leap Before You Look Streaker Universal Adapter Use The Force Challenges ------------ None Game ------ Seed BoreCorruptionReplicator Manual? 0 Play Time 02:35:36 Cumulative 14.7 hours Start 2024.04.10 @ 00:29:05 End 2024.04.10 @ 03:09:16 Sessions 1 Manual Loads 0 Difficulty Rogue Special Mode None Game No. 6 Rogue 6 Adventurer 0 Explorer 0 Win Type - Total 0 Types 0/0/0/0/0/0/0/0/0 Lore% 7 Gallery% 19 Achievement% 16 Wizard Run 0 Options --------- Layout 0 ASCII 0 Keyboard 0 Movement Mouse Keybinds 0 Fullscreen 2 Font 18/SmallcapsGlow Map View 76x50 Zoom Use 0% Tactical HUD 1 Map Filters NONE Filters NONE Steam 1 RUN: 139160fb-1959-4857-9022-e8a3823006b2